bitfinex-derivatives/quotes_SOLF0:USTF0_20251211
["timestamp","ask_amount","ask_price","bid_price","bid_amount"]
[1765471610613,3.31,131.97,131.91,3.27826842]
[1765471611524,3.31,131.97,131.91,0.05826842]
[1765471611920,3.31,131.96,131.91,6.88036842]
[1765471612835,3.31,131.96,131.91,0.05826842]
[1765471613123,3.31,131.95,131.91,0.05826842]
[1765471614318,3.31,131.93,131.91,0.05826842]
[1765471616928,10.1313,131.93,131.91,0.05826842]
[1765471617132,3.31,131.92,131.91,0.05826842]
[1765471617719,10.1321,131.92,131.85,6.8249]
[1765471617922,3.31,131.91,131.85,6.8249]
[1765471618831,3.36580466,131.89,131.87,0.05590782]
[1765471619026,3.36727491,131.89,131.87,0.05590782]
[1765471619825,3.31,131.88,131.83,6.8261]
[1765471620432,3.31,131.87,131.8,6.8279]
[1765471620633,3.31,131.87,131.78,3.22]
[1765471620938,3.36433345,131.84,131.81,0.05385562]
[1765471622139,10.19033345,131.84,131.81,0.05385562]
[1765471622438,3.31,131.83,131.81,0.05385562]
[1765471623131,3.31,131.83,131.81,6.88115562]
[1765471623329,3.36433345,131.84,131.81,0.05385562]
[1765471626426,3.31,131.82,131.76,6.8298]
[1765471626835,3.31,131.82,131.74,3.22]
[1765471627337,3.31,131.78,131.77,0.05805182]
[1765471627841,3.31,131.78,131.73,6.8313]
[1765471628532,3.31,131.78,131.74,10.0509]
[1765471628733,0.05623063,131.77,131.75,109.52097663]
[1765471628936,0.05623063,131.77,131.76,3.22]
[1765471629833,0.05623063,131.77,131.76,4.74]
[1765471630033,3.31,131.81,131.77,3.22]
[1765471630540,64.46,131.82,131.77,3.22]
[1765471630732,67.77,131.82,131.77,3.22]
[1765471630935,67.77,131.82,131.78,3.22]
[1765471631131,0.04821517,131.81,131.78,3.27366193]
[1765471631527,0.04821517,131.81,131.78,10.10256193]
[1765471631726,0.04821517,131.81,131.79,3.22]
[1765471633942,3.21821517,131.81,131.78,0.05366193]
[1765471634744,0.04821517,131.81,131.78,3.17366193]
[1765471634939,3.21821517,131.81,131.78,3.17366193]
[1765471639841,3.21821517,131.81,131.78,0.05366193]
[1765471641550,3.21821517,131.81,131.78,3.16366193]
[1765471641756,0.04821517,131.81,131.78,3.16366193]
[1765471642149,0.04821517,131.81,131.8,6.8279]
[1765471642651,131.80269984,131.9,131.8,3.11]
[1765471642652,64.48,131.86,131.8,3.11]
[1765471642864,3.41,131.85,131.82,3.11]
[1765471643054,3.41,131.85,131.79,3.11]
[1765471643453,3.41,131.85,131.82,6.8267]
[1765471643653,3.45920581,131.85,131.82,6.87911728]
[1765471644657,3.45920581,131.85,131.82,0.05241728]
[1765471645361,3.41,131.84,131.82,0.05241728]
[1765471646049,3.41,131.83,131.82,0.05241728]
[1765471648162,3.41,131.81,131.76,3.11]
[1765471648863,3.41,131.8,131.76,3.11]
[1765471649054,0.05619052,131.79,131.77,0.05570699]
[1765471649872,3.46619052,131.79,131.77,0.05570699]
[1765471650260,6.8295,131.77,131.72,3.11]
[1765471650456,3.41,131.76,131.69,21.91323445]
[1765471650660,3.41,131.76,131.69,3.11]
[1765471651269,3.4678014,131.74,131.71,0.05246512]
[1765471651474,3.4678014,131.74,131.71,0.05434738]
[1765471651676,0.0578014,131.74,131.71,3.16434738]
[1765471652956,3.4678014,131.74,131.71,3.16434738]
[1765471653767,3.4678014,131.74,131.71,0.05434738]
[1765471654070,3.41,131.73,131.71,0.05434738]
[1765471654260,6.8889014,131.74,131.71,3.16434738]
[1765471654462,10.2989014,131.74,131.71,3.16434738]
[1765471654860,10.2989014,131.74,131.71,0.05434738]
[1765471655365,10.2419,131.73,131.71,0.05434738]
[1765471656070,10.2416,131.73,131.71,0.05434738]
[1765471657175,3.41,131.72,131.65,3.11]
[1765471657675,3.41,131.74,131.69,3.11]
[1765471658174,3.45969209,131.73,131.7,0.05667987]
[1765471658562,0.04969209,131.73,131.7,3.16667987]
[1765471659375,0.04969209,131.73,131.7,9.99977987]
[1765471659567,0.04969209,131.73,131.71,3.11]
[1765471661781,0.04969209,131.73,131.71,9.9425]
[1765471661987,0.04969209,131.73,131.72,3.11]
[1765471663376,0.04969209,131.73,131.71,3.11]
[1765471666383,3.45969209,131.73,131.7,0.05667987]
[1765471668883,3.38,131.72,131.7,0.05667987]
[1765471669085,3.38,131.71,131.7,0.05667987]
[1765471669284,3.38,131.71,131.66,3.11]
[1765471669485,3.38,131.7,131.66,3.11]
[1765471669686,3.38,131.68,131.62,6.8369]
[1765471669880,3.38,131.68,131.6,3.19]
[1765471670079,3.38,131.67,131.6,3.19]
[1765471670381,3.38,131.64,131.62,0.05228614]
[1765471670781,0.04988667,131.65,131.62,3.24228614]
[1765471672879,3.42988667,131.65,131.62,0.05228614]
[1765471674279,0.04988667,131.65,131.62,3.24228614]
[1765471675089,3.42988667,131.65,131.62,3.24228614]
[1765471675591,0.04988667,131.65,131.62,3.24228614]
[1765471677183,3.42988667,131.65,131.62,0.05228614]
[1765471678696,3.38,131.63,131.59,3.19]
[1765471678998,3.38,131.66,131.59,3.19]
[1765471679184,67.92,131.66,131.59,3.19]
[1765471679585,0.0547363,131.64,131.61,3.23804042]
[1765471680488,3.4347363,131.64,131.61,0.04804042]
[1765471680693,3.38,131.63,131.55,3.19]
[1765471681087,3.38,131.63,131.54,106.4179]
[1765471681088,3.38,131.62,131.56,10.0302]
[1765471681292,106.322,131.67,131.57,3.19]
[1765471681506,3.38,131.65,131.57,3.19]
[1765471681695,0.05520863,131.62,131.6,0.05232324]
[1765471681893,3.43520863,131.62,131.6,0.05232324]
[1765471682486,0.05520863,131.62,131.6,3.24232324]
[1765471683894,0.05520863,131.62,131.6,10.08032324]
[1765471684294,0.05520863,131.62,131.6,3.24232324]
[1765471685899,0.05520863,131.62,131.6,10.08052324]
[1765471686604,3.43520863,131.62,131.6,0.05232324]
[1765471689015,0.05520863,131.62,131.6,3.24232324]
[1765471689503,0.05520863,131.62,131.6,10.08062324]
[1765471689708,0.05520863,131.62,131.61,3.19]
[1765471689906,0.05520863,131.62,131.6,10.08062324]
[1765471690101,3.43520863,131.62,131.6,6.89062324]
[1765471690307,0.05520863,131.62,131.6,10.08062324]
[1765471690713,0.05520863,131.62,131.6,3.24232324]
[1765471692411,0.05520863,131.62,131.6,10.08052324]
[1765471692909,0.05520863,131.62,131.61,3.19]
[1765471693605,22.75,131.73,131.65,3.19]
[1765471693606,10.2133,131.7,131.65,3.19]
[1765471693809,3.38,131.69,131.65,3.19]
[1765471694598,3.43131718,131.68,131.66,0.05130491]
[1765471698017,3.38,131.67,131.6,3.19]
[1765471699018,0.05504704,131.65,131.63,3.24]
[1765471700011,0.05504704,131.65,131.64,3.24]
[1765471700614,0.05504704,131.65,131.64,10.0762]
[1765471700816,0.05504704,131.65,131.64,13.30337016]
[1765471701017,0.05504704,131.65,131.64,10.0762]
[1765471701218,0.05504704,131.65,131.64,13.30337016]
[1765471701421,3.2,131.69,131.65,10.0755]
[1765471702324,0.05745328,131.68,131.66,0.05445306]
[1765471702724,0.05745328,131.68,131.66,3.29445306]
[1765471702919,0.05745328,131.68,131.66,10.12955306]
[1765471704221,0.05745328,131.68,131.66,0.05445306]
[1765471704923,0.05745328,131.68,131.66,3.29445306]
[1765471705423,0.05745328,131.68,131.66,6.88965306]
[1765471705625,0.05745328,131.68,131.67,3.24]
[1765471706224,3.2,131.72,131.68,3.24]
[1765471706629,71.3911,131.74,131.68,3.24]
[1765471706818,3.2,131.76,131.7,3.24]
[1765471707212,3.2,131.76,131.72,0.05834094]
[1765471707213,0.04971778,131.74,131.72,0.05834094]
[1765471707729,0.04971778,131.74,131.72,3.29834094]
[1765471708023,3.24971778,131.74,131.72,0.05834094]
[1765471708329,0.04971778,131.74,131.72,3.29834094]
[1765471710025,0.04971778,131.74,131.72,0.05834094]
[1765471711028,0.04971778,131.74,131.72,3.29834094]
[1765471712528,3.24971778,131.74,131.72,0.05834094]
[1765471712831,0.04971778,131.74,131.72,0.05834094]
[1765471713122,3.24971778,131.74,131.72,0.05834094]
[1765471714725,0.04971778,131.74,131.72,3.29834094]
[1765471718033,7.68575708,131.79,131.73,3.24]
[1765471718224,3.2,131.79,131.73,3.24]
[1765471718425,3.2,131.79,131.75,6.8303]
[1765471718624,3.2,131.79,131.75,10.0703]
[1765471718822,3.2,131.8,131.76,3.24]
[1765471719134,0.05113349,131.79,131.77,0.04936956]
[1765471720730,3.25113349,131.79,131.77,0.04936956]
[1765471722828,3.2,131.78,131.77,0.04936956]
[1765471723931,3.2,131.78,131.73,13.2948052]
[1765471723932,3.2,131.77,131.73,3.24]
[1765471724132,3.2,131.76,131.73,3.24]
[1765471724722,3.2233052,131.75,131.71,3.24]
[1765471724930,3.25356787,131.74,131.72,0.05138967]
[1765471725337,0.05356787,131.74,131.72,0.05138967]
[1765471725537,3.25356787,131.74,131.72,0.05138967]
[1765471725927,0.05356787,131.74,131.72,0.05138967]
[1765471726545,0.05356787,131.74,131.72,3.29138967]
[1765471727734,6.47687307,131.74,131.72,0.05138967]
[1765471727925,3.2,131.73,131.72,0.05138967]
[1765471728132,3.2,131.73,131.68,3.24]
[1765471728326,3.2,131.71,131.65,3.2233052]
[1765471728532,3.2,131.69,131.65,6.4633052]
[1765471728725,3.2,131.69,131.65,3.24]
[1765471729139,6.52647029,131.68,131.66,0.05452037]
[1765471729836,0.05316509,131.68,131.66,3.39452037]
[1765471730537,6.52647029,131.68,131.66,0.05452037]
[1765471730738,3.30316509,131.68,131.66,0.05452037]
[1765471731743,10.13766509,131.68,131.66,0.05452037]
[1765471731945,3.25,131.67,131.66,0.05452037]
[1765471732838,6.8352,131.66,131.61,3.34]
[1765471733034,3.25,131.65,131.61,3.34]
[1765471733235,6.8352,131.66,131.61,3.34]
[1765471733438,10.0852,131.66,131.61,3.34]
[1765471733939,0.0514144,131.65,131.62,3.39676438]
[1765471734846,0.0514144,131.65,131.63,3.34]
[1765471736446,0.0514144,131.65,131.62,3.39676438]
[1765471738241,3.3014144,131.65,131.62,3.39676438]
[1765471739140,10.1373144,131.65,131.62,0.05676438]
[1765471739336,3.25,131.64,131.62,0.05676438]
[1765471740143,3.3014144,131.65,131.62,0.05676438]
[1765471740449,0.0514144,131.65,131.63,3.34]
[1765471741847,0.0514144,131.65,131.62,3.39676438]
[1765471742353,3.3014144,131.65,131.62,0.05676438]
[1765471743436,3.25,131.63,131.62,0.05676438]
[1765471743636,3.25,131.63,131.56,3.34]
[1765471744047,64.56,131.64,131.6,3.34]
[1765471744252,67.81,131.64,131.6,3.34]
[1765471744546,0.05253338,131.63,131.61,3.39249956]
[1765471745447,0.05253338,131.63,131.61,10.23019956]
[1765471745639,0.05253338,131.63,131.62,3.34]
[1765471745846,0.05253338,131.63,131.61,3.39249956]
[1765471748547,0.05253338,131.63,131.61,0.05249956]
[1765471748747,0.05253338,131.63,131.61,3.39249956]
[1765471749348,0.05253338,131.63,131.62,3.34]
[1765471749550,3.25,131.69,131.62,3.34]
[1765471750052,64.56,131.7,131.65,3.34]
[1765471750452,0.05357412,131.69,131.66,3.39070098]
[1765471751248,3.30357412,131.69,131.66,3.39070098]
[1765471751846,3.30357412,131.69,131.66,0.05070098]
[1765471752556,0.05357412,131.69,131.66,3.39070098]
[1765471756657,3.31357412,131.69,131.66,10.22580098]
[1765471756856,3.31357412,131.69,131.66,3.44070098]
[1765471757264,3.31357412,131.69,131.66,0.05070098]
[1765471761164,3.31357412,131.69,131.66,3.40070098]
[1765471761165,0.05357412,131.69,131.66,3.40070098]
[1765471761866,0.05357412,131.69,131.68,3.35]
[1765471763462,3.25357412,131.69,131.66,0.05070098]
[1765471764369,3.25357412,131.69,131.66,3.40070098]
[1765471765070,0.05357412,131.69,131.66,3.40070098]
[1765471765457,0.05357412,131.69,131.66,10.23580098]
[1765471765863,0.05357412,131.69,131.67,3.35]
[1765471767272,0.05357412,131.69,131.67,10.1847]
[1765471767468,0.05357412,131.69,131.68,3.35]
[1765471768269,0.05357412,131.69,131.68,10.1842]
[1765471768461,67.76,131.74,131.69,3.35]
[1765471768873,3.2,131.73,131.7,3.35]
[1765471769666,3.25164721,131.73,131.7,3.40346425]
[1765471769867,0.05164721,131.73,131.7,3.40346425]
[1765471772473,3.25164721,131.73,131.7,0.05346425]
[1765471773974,3.2,131.72,131.7,0.05346425]
[1765471775280,10.08324721,131.73,131.7,3.40346425]
[1765471775785,3.2,131.72,131.7,0.05346425]
[1765471776886,10.0322,131.72,131.7,0.05346425]
[1765471777089,3.2,131.71,131.7,0.05346425]
[1765471777679,3.25164721,131.73,131.7,3.40346425]
[1765471778080,3.25164721,131.73,131.7,0.05346425]
[1765471778283,3.25164721,131.73,131.7,3.40346425]
[1765471778584,10.08344721,131.73,131.7,0.05346425]
[1765471778790,3.25164721,131.73,131.7,0.05346425]
[1765471779791,3.25164721,131.73,131.65,6.8352]
[1765471780084,3.2,131.73,131.65,10.1852]
[1765471780289,3.2,131.7,131.65,10.1852]
[1765471780789,3.2512275,131.69,131.66,3.40469518]
[1765471785983,3.2512275,131.69,131.66,0.05469518]
[1765471787978,3.2,131.67,131.66,0.05469518]
[1765471789385,6.8342,131.68,131.66,3.14469518]
[1765471789587,10.0142,131.68,131.66,0.05469518]
[1765471790098,3.2312275,131.69,131.66,3.14469518]
[1765471790801,10.0650275,131.69,131.66,3.14469518]
[1765471791001,3.18,131.68,131.66,3.14469518]
[1765471793304,3.18,131.68,131.66,0.05469518]
[1765471793494,10.0142,131.68,131.66,0.05469518]
[1765471793988,74.5742,131.68,131.66,0.05469518]
[1765471794703,3.18,131.68,131.66,0.05469518]
[1765471795096,67.74,131.68,131.66,0.05469518]
[1765471796199,74.5742,131.68,131.66,0.05469518]
[1765471797103,10.0147,131.67,131.66,0.05469518]
[1765471798307,6.8347,131.67,131.66,0.05469518]
[1765471798603,0.0512275,131.69,131.66,3.14469518]
[1765471799201,0.0512275,131.69,131.67,3.09]
[1765471799796,3.2312275,131.69,131.66,0.05469518]
[1765471799996,3.2312275,131.69,131.66,3.14469518]
[1765471800299,0.0512275,131.69,131.66,3.14469518]
[1765471800607,0.0512275,131.69,131.67,3.09]
[1765471800908,3.2312275,131.69,131.66,0.05469518]
[1765471801405,3.2312275,131.69,131.66,3.14469518]
[1765471802103,0.0512275,131.69,131.66,3.14469518]
[1765471802501,3.2312275,131.69,131.66,3.14469518]
[1765471803498,6.45879666,131.69,131.66,0.05469518]
[1765471803699,3.18,131.68,131.66,0.05469518]
[1765471804399,64.6112275,131.69,131.66,3.14469518]
[1765471804798,3.18,131.68,131.66,0.05469518]
[1765471806508,3.18,131.66,131.61,25.12080361]
[1765471806707,3.18,131.64,131.61,3.09]
[1765471807206,3.18,131.62,131.58,21.89323445]
[1765471807510,0.05064356,131.61,131.59,3.13893803]
[1765471808297,3.23064356,131.61,131.59,0.04893803]
[1765471809002,6.45821272,131.61,131.59,0.04893803]
[1765471809198,3.18,131.6,131.59,0.04893803]
[1765471809398,3.18,131.6,131.53,3.09]
[1765471809703,6.40756916,131.57,131.53,3.09]
[1765471809903,3.18,131.56,131.53,3.09]
[1765471810104,3.18,131.56,131.51,6.31756916]
[1765471810410,3.22926656,131.55,131.52,3.14532592]
[1765471810612,0.04926656,131.55,131.52,3.14532592]
[1765471811415,0.04926656,131.55,131.53,3.09]
[1765471811713,61.0,131.62,131.54,3.09]
[1765471811908,3.18,131.61,131.54,9.9313]
[1765471812811,57.82,131.62,131.54,9.9313]
[1765471812812,3.23828965,131.59,131.56,0.05411515]
[1765471813821,3.23828965,131.59,131.51,3.42]
[1765471814126,3.18,131.59,131.51,3.42]
[1765471814306,3.18,131.59,131.51,10.2628]
[1765471814513,3.31,131.59,131.52,3.42]
[1765471814813,0.05833714,131.57,131.54,3.47148807]
[1765471815919,3.36833714,131.57,131.54,3.47148807]
[1765471816418,3.36833714,131.57,131.54,0.05148807]
[1765471816620,3.36833714,131.57,131.54,3.47148807]
[1765471817115,3.36833714,131.57,131.54,0.05148807]
[1765471817511,3.31,131.56,131.54,0.05148807]
[1765471818722,3.4,131.55,131.54,0.05148807]
[1765471819013,3.4,131.55,131.48,3.29]
[1765471819721,3.4,131.55,131.49,3.29]
[1765471819916,3.45678544,131.53,131.51,0.05416005]
[1765471820123,3.4,131.51,131.46,10.1352]
[1765471820514,3.4,131.51,131.47,3.29]
[1765471820711,11.10037773,131.54,131.48,3.29]
[1765471820919,68.0,131.54,131.48,3.29]
[1765471821123,3.45340437,131.52,131.5,0.05182686]
[1765471821514,0.05340437,131.52,131.5,0.05182686]
[1765471821915,3.45340437,131.52,131.5,0.05182686]
[1765471822920,0.05340437,131.52,131.5,3.34182686]
[1765471824326,0.05340437,131.52,131.51,3.29]
[1765471824716,0.05340437,131.52,131.5,6.89512686]
[1765471824918,3.45340437,131.52,131.5,0.05182686]
[1765471825325,0.05340437,131.52,131.5,0.05182686]
[1765471825516,0.05340437,131.52,131.5,3.34182686]
[1765471825714,109.7699,131.61,131.51,3.29]
[1765471825917,3.4,131.6,131.52,3.29]
[1765471826317,3.4,131.6,131.54,10.1312]
[1765471826318,10.2384,131.6,131.54,10.1312]
[1765471826721,0.05084831,131.58,131.56,0.05836347]
[1765471827127,3.45084831,131.58,131.56,0.05836347]
[1765471829627,3.4,131.57,131.56,0.05836347]
[1765471830621,3.4,131.57,131.51,6.8425]
[1765471830622,10.24,131.57,131.51,6.8425]
[1765471830822,10.24,131.57,131.51,10.1325]
[1765471831620,0.05555751,131.55,131.53,0.05253612]
[1765471831825,3.45555751,131.55,131.53,0.05253612]
[1765471832026,0.05555751,131.55,131.53,3.34253612]
[1765471832422,0.05555751,131.55,131.53,10.18443612]
[1765471833017,0.05555751,131.55,131.54,3.29]
[1765471834225,3.4,131.63,131.54,3.29]
[1765471834431,129.0808,131.66,131.54,3.29]
[1765471834432,3.4,131.61,131.54,3.29]
[1765471835039,3.4,131.59,131.55,10.1309]
[1765471835232,3.4,131.59,131.55,3.29]
[1765471835532,3.45103488,131.58,131.56,0.05604436]
[1765471836038,3.4,131.57,131.49,3.29]
[1765471836234,3.4,131.55,131.49,3.29]
[1765471836831,0.05839086,131.53,131.51,0.05085061]
[1765471837146,3.45839086,131.53,131.51,0.05085061]
[1765471839039,10.30049086,131.53,131.51,0.05085061]
[1765471839226,3.4,131.52,131.51,0.05085061]
[1765471840037,3.4,131.51,131.47,3.29]
[1765471840545,10.243,131.51,131.47,3.29]
[1765471840934,0.04826393,131.5,131.48,0.04312367]
[1765471841339,0.04826393,131.5,131.48,3.33312367]
[1765471841849,3.44826393,131.5,131.48,0.04312367]
[1765471842040,0.04826393,131.5,131.48,3.33312367]
[1765471842243,0.04826393,131.5,131.49,3.29]
[1765471843744,0.04826393,131.5,131.48,10.17762367]
[1765471844038,0.04826393,131.5,131.49,3.29]
[1765471844232,0.04826393,131.5,131.48,3.33312367]
[1765471845954,0.04826393,131.5,131.48,0.04312367]
[1765471846135,0.04826393,131.5,131.4,106.5306]
[1765471846136,68.06826393,131.5,131.43,3.29]
[1765471847941,68.06826393,131.5,131.46,10.1355]
[1765471848142,0.04826393,131.5,131.47,3.29]
[1765471848449,0.04826393,131.5,131.48,10.1345]
[1765471848837,0.04826393,131.5,131.48,3.29]
[1765471849149,0.04826393,131.5,131.47,10.055]
[1765471849548,0.04826393,131.5,131.48,3.21]
[1765471849751,0.04826393,131.5,131.48,10.0545]
[1765471850951,3.31826393,131.5,131.46,10.0553]
[1765471851141,3.31826393,131.5,131.46,3.21]
[1765471851648,3.27,131.49,131.44,10.0566]
[1765471851851,0.04960864,131.48,131.45,3.21]
[1765471852144,0.04960864,131.48,131.45,10.0561]
[1765471852350,0.04960864,131.48,131.46,3.21]
[1765471853450,0.04960864,131.48,131.46,10.0555]
[1765471853659,0.04960864,131.48,131.47,3.21]
[1765471853948,120.0661,131.59,131.47,3.21]
[1765471853949,6.8419,131.54,131.49,6.844]
[1765471854168,3.27,131.53,131.5,3.21]
[1765471854354,3.27,131.54,131.5,3.21]
[1765471854746,0.0523644,131.53,131.51,0.04960864]
[1765471856554,0.0523644,131.53,131.51,3.25960864]
[1765471858758,3.3223644,131.53,131.51,0.04960864]
[1765471860657,3.27,131.51,131.45,3.21]
[1765471861556,10.1147,131.48,131.42,22.01323445]
[1765471861748,0.05073109,131.46,131.43,3.21]
[1765471862655,0.05073109,131.46,131.45,3.21]
[1765471863741,0.05073109,131.46,131.43,3.21]
[1765471868152,0.05073109,131.46,131.44,3.21]
[1765471869459,0.05073109,131.46,131.44,10.0565]
[1765471869660,0.05073109,131.46,131.44,3.21]
[1765471871760,3.32073109,131.46,131.41,3.21]
[1765471872262,0.05073109,131.46,131.41,3.21]
[1765471872452,3.32073109,131.46,131.41,3.21]
[1765471872857,0.05073109,131.46,131.42,6.8476]
[1765471873059,0.05073109,131.46,131.43,3.21]
[1765471873657,3.14,131.44,131.37,18.80323445]
[1765471873964,3.19641696,131.42,131.37,3.19]
[1765471875664,3.19641696,131.42,131.38,3.19]
[1765471875863,3.19641696,131.42,131.34,3.19]
[1765471876163,3.19204418,131.39,131.35,3.19]
[1765471876360,0.05204418,131.39,131.35,3.19]
[1765471876666,0.05204418,131.39,131.37,3.19]
[1765471876851,64.66,131.43,131.4,10.0384]
[1765471877049,67.8,131.43,131.38,3.19]
[1765471877664,3.14,131.42,131.38,3.19]
[1765471877856,0.05667306,131.41,131.39,3.24204418]
[1765471878458,0.05667306,131.41,131.39,0.05204418]
[1765471878765,0.05667306,131.41,131.39,3.19204418]
[1765471879360,0.05667306,131.41,131.39,10.04104418]
[1765471879662,0.05667306,131.41,131.4,3.14]
[1765471880451,0.05667306,131.41,131.39,3.19204418]
[1765471881967,10.2254,131.47,131.4,3.14]
[1765471882758,10.2254,131.47,131.41,3.14]
[1765471882963,0.05432947,131.45,131.43,3.18942748]
[1765471883467,0.05432947,131.45,131.43,0.04942748]
[1765471883866,0.05432947,131.45,131.43,3.18942748]
[1765471884565,3.43432947,131.45,131.43,0.04942748]
[1765471885469,0.05432947,131.45,131.43,0.04942748]
[1765471885671,3.43432947,131.45,131.43,0.04942748]
[1765471886062,0.05432947,131.45,131.43,3.18942748]
[1765471888075,3.43432947,131.45,131.43,0.04942748]
[1765471889068,3.38,131.44,131.43,0.04942748]
[1765471889867,10.2266,131.44,131.43,0.04942748]
[1765471890578,3.43432947,131.45,131.43,0.04942748]
[1765471891963,74.94052947,131.45,131.43,0.04942748]
[1765471892364,71.56052947,131.45,131.43,0.04942748]
[1765471893769,0.05432947,131.45,131.43,3.18942748]
[1765471897874,0.05432947,131.45,131.43,10.03652748]
[1765471898174,0.05432947,131.45,131.44,3.14]
[1765471899378,3.43432947,131.45,131.43,0.04942748]
[1765471900888,3.38,131.44,131.43,0.04942748]
[1765471902085,0.05432947,131.45,131.43,0.04942748]
[1765471902289,3.43432947,131.45,131.43,0.04942748]
[1765471907692,3.43432947,131.45,131.37,28.79303445]
[1765471907893,3.38,131.45,131.37,3.14]
[1765471908290,3.38,131.43,131.37,3.14]
[1765471908492,3.38,131.41,131.37,3.14]
[1765471909101,3.38,131.41,131.38,0.0548139]
[1765471909400,3.34,131.39,131.38,0.0548139]
[1765471910098,0.04990097,131.4,131.38,3.1648139]
[1765471911194,8.4057091,131.48,131.4,3.11]
[1765471911396,3.34,131.45,131.41,3.11]
[1765471911599,3.34,131.45,131.42,14.03668106]
[1765471911998,3.34,131.45,131.42,17.14668106]
[1765471912199,3.38783747,131.45,131.42,14.0908782]
[1765471912597,3.38783747,131.45,131.42,0.05419714]
[1765471914196,3.34,131.43,131.42,0.05419714]
[1765471915098,3.34,131.44,131.42,0.05419714]
[1765471916711,10.1867,131.44,131.42,0.05419714]
[1765471917000,3.38783747,131.45,131.42,3.16419714]
[1765471917598,3.38783747,131.45,131.42,0.05419714]
[1765471919010,3.34,131.44,131.42,0.05419714]
[1765471920415,0.04783747,131.45,131.44,3.11]
[1765471920614,0.04783747,131.45,131.44,17.14668106]
[1765471920811,0.04783747,131.45,131.44,14.03668106]
[1765471921708,3.38783747,131.45,131.43,14.03668106]
[1765471921903,0.04783747,131.45,131.42,17.2008782]
[1765471922108,3.38783747,131.45,131.42,14.0908782]
[1765471922513,3.38783747,131.45,131.42,0.05419714]
[1765471923018,10.23403747,131.45,131.42,0.05419714]
[1765471923517,0.04783747,131.45,131.43,3.11]
[1765471923709,0.04783747,131.45,131.44,17.14668106]
[1765471924520,3.38783747,131.45,131.44,14.03668106]
[1765471924813,3.38783747,131.45,131.42,14.0908782]
[1765471926006,3.34,131.43,131.42,0.05419714]
[1765471926512,10.1882,131.41,131.39,14.03668106]
[1765471926820,3.34,131.41,131.37,14.03668106]
[1765471927015,68.02,131.43,131.38,17.14668106]
[1765471927213,68.02,131.43,131.39,17.14668106]
[1765471927214,3.34,131.42,131.39,17.14668106]
[1765471927524,0.05541499,131.42,131.4,3.11]
[1765471931819,0.05541499,131.42,131.41,17.14668106]
[1765471932023,0.05541499,131.42,131.41,3.11]
[1765471932222,0.05541499,131.42,131.4,17.14668106]
[1765471933223,0.05541499,131.42,131.41,3.11]
[1765471933625,0.05541499,131.42,131.41,17.14668106]
[1765471933923,0.05541499,131.42,131.41,17.1673277]
[1765471934129,0.05541499,131.42,131.39,0.05499359]
[1765471934130,0.05541499,131.42,131.4,14.0573277]
[1765471934316,3.17541499,131.42,131.39,14.11232129]
[1765471934622,3.17541499,131.42,131.39,17.34232129]
[1765471935013,6.8482,131.41,131.39,14.11232129]
[1765471935230,9.9682,131.41,131.39,0.05499359]
[1765471935826,13.20955958,131.41,131.39,0.05499359]
[1765471937429,6.8487,131.4,131.39,0.05499359]
[1765471937932,9.9687,131.4,131.39,0.05499359]
[1765471938433,6.8487,131.4,131.39,0.05499359]
[1765471938619,3.13541499,131.42,131.39,3.31499359]
[1765471939023,6.32135958,131.41,131.39,0.05499359]
[1765471940129,6.8487,131.4,131.39,0.05499359]
[1765471941138,71.5287,131.4,131.39,0.05499359]
[1765471941427,64.68,131.4,131.39,0.05499359]
[1765471941818,64.68,131.4,131.39,14.11232129]
[1765471942034,64.68,131.4,131.39,17.37232129]
[1765471942630,64.68,131.4,131.39,14.11232129]
[1765471943528,67.76,131.4,131.39,14.11232129]
[1765471943728,67.76,131.4,131.39,0.05499359]
[1765471944127,74.6087,131.4,131.39,0.05499359]
[1765471944325,3.08,131.39,131.36,14.0573277]
[1765471944620,9.9298,131.38,131.36,14.0573277]
[1765471944824,3.08,131.38,131.36,14.0573277]